bitfinex/quotes_SOLUSD_20240813
["timestamp","ask_amount","ask_price","bid_price","bid_amount"]
[1723578858037,0.38572304,146.73,146.66,30.0]
[1723578858234,0.38572304,146.73,146.67,20.0]
[1723578858436,45.12549,146.74,146.67,20.0]
[1723578858612,0.12549,146.73,146.67,20.0]
[1723578858938,0.51121304,146.73,146.67,20.0]
[1723578859141,0.51121304,146.73,146.65,20.0]
[1723578859718,0.12549,146.73,146.65,20.0]
[1723578860847,0.50196,146.73,146.65,20.0]
[1723578861512,0.50196,146.73,146.63,20.0]
[1723578861713,29.16716,146.73,146.63,30.0]
[1723578862113,0.12549,146.71,146.63,30.0]
[1723578862409,0.50196,146.71,146.63,30.0]
[1723578863037,0.50196,146.71,146.62,7.09887786]
[1723578863239,0.50196,146.71,146.63,20.0]
[1723578866635,0.50196,146.71,146.63,17.30112521]
[1723578867541,15.7138,146.7,146.62,7.09887786]
[1723578867716,28.87376,146.69,146.59,94.53516089]
[1723578867920,0.12549,146.67,146.59,94.53516089]
[1723578868118,0.50196,146.67,146.59,94.53516089]
[1723578868450,0.37647,146.67,146.59,94.53516089]
[1723578868830,22.22647,146.67,146.59,94.53516089]
[1723578869027,0.12549,146.65,146.59,94.53516089]
[1723578869634,45.12549,146.66,146.59,94.53516089]
[1723578869833,45.0,146.66,146.59,94.53516089]
[1723578870227,0.12549,146.65,146.6,20.0]
[1723578870430,0.50196,146.65,146.6,20.0]
[1723578871538,0.50196,146.65,146.59,94.53516089]
[1723578871753,0.12549,146.63,146.59,94.53516089]
[1723578871932,51.77427,146.63,146.56,0.8368781]
[1723578872120,51.52329,146.63,146.56,0.8368781]
[1723578873923,51.52329,146.63,146.56,20.8368781]
[1723578874623,51.52329,146.63,146.56,0.8368781]
[1723578874848,51.52329,146.63,146.57,20.0]
[1723578875150,51.52329,146.63,146.56,0.8368781]
[1723578875330,0.12549,146.61,146.56,0.8368781]
[1723578875843,0.12549,146.62,146.56,0.8368781]
[1723578876033,51.3978,146.63,146.56,0.8368781]
[1723578876254,0.12549,146.62,146.56,0.8368781]
[1723578878141,0.50196,146.62,146.56,0.8368781]
[1723578878972,51.3978,146.63,146.56,0.8368781]
[1723578879141,16.4108,146.64,146.58,21.85]
[1723578879340,16.4108,146.64,146.59,20.0]
[1723578880146,6.1718,146.66,146.59,20.50617347]
[1723578880343,6.8159,146.72,146.62,21.85]
[1723578880344,6.2579,146.7,146.62,21.85]
[1723578880706,15.7737,146.72,146.64,21.85]
[1723578881189,15.7737,146.72,146.65,21.36335505]
[1723578881355,6.2579,146.73,146.66,21.85]
[1723578882574,0.12549,146.72,146.65,20.0]
[1723578882774,45.25098,146.72,146.65,20.0]
[1723578882986,45.37647,146.72,146.65,20.0]
[1723578883353,7.32751304,146.71,146.58,6.2482]
[1723578883575,0.12549,146.69,146.59,30.0]
[1723578883884,45.12549,146.69,146.59,30.0]
[1723578884043,45.12549,146.69,146.6,21.85]
[1723578884378,6.2579,146.73,146.64,21.85]
[1723578884951,6.2579,146.73,146.66,21.85]
[1723578885574,6.2579,146.73,146.65,20.0]
[1723578886060,0.12549,146.72,146.65,20.0]
[1723578886254,45.50196,146.72,146.64,20.0]
[1723578886664,45.50196,146.72,146.63,21.85]
[1723578886868,45.50196,146.72,146.64,20.0]
[1723578888054,45.37647,146.72,146.65,21.85]
[1723578888453,6.2579,146.73,146.65,21.85]
[1723578888693,6.2579,146.73,146.67,21.85]
[1723578890479,45.0,146.72,146.66,20.0]
[1723578890660,0.12549,146.71,146.66,20.0]
[1723578890986,45.0,146.72,146.66,20.0]
[1723578891493,0.12549,146.71,146.63,21.85]
[1723578891662,0.12549,146.71,146.61,21.85]
[1723578891663,0.50196,146.71,146.61,21.85]
[1723578891861,0.50196,146.71,146.62,30.0]
[1723578892966,0.50196,146.71,146.63,20.0]
[1723578893165,0.50196,146.71,146.63,41.85]
[1723578893678,0.12549,146.71,146.63,41.85]
[1723578893991,6.38339,146.73,146.65,21.85]
[1723578894177,6.38339,146.73,146.66,20.0]
[1723578894765,45.0,146.72,146.66,20.0]
[1723578899386,0.12549,146.71,146.66,20.0]
[1723578899696,0.12549,146.71,146.64,20.0]
[1723578899866,0.12549,146.71,146.65,30.0]
[1723578900066,0.12549,146.71,146.66,20.0]
[1723578900268,6.2579,146.73,146.67,22.5290766]
[1723578900462,6.2579,146.73,146.67,21.85]
[1723578900682,16.0612,146.74,146.67,21.85]
[1723578901192,16.0612,146.74,146.66,20.0]
[1723578901697,0.12549,146.73,146.66,20.0]
[1723578901878,0.37647,146.73,146.65,30.0]
[1723578902079,0.37647,146.73,146.66,20.0]
[1723578902281,0.37647,146.73,146.65,30.0]
[1723578902282,6.94209,146.71,146.65,30.0]
[1723578902597,0.12549,146.69,146.65,30.0]
[1723578902967,0.12549,146.69,146.61,21.85]
[1723578903174,0.12549,146.69,146.62,30.0]
[1723578903999,0.12549,146.69,146.61,21.85]
[1723578904167,0.12549,146.69,146.62,20.0]
[1723578904771,0.12549,146.67,146.62,20.0]
[1723578904964,45.12549,146.67,146.61,20.0]
[1723578905205,45.12549,146.67,146.57,21.85]
[1723578905206,45.12549,146.67,146.58,20.0]
[1723578906002,0.12549,146.65,146.58,20.0]
[1723578906189,0.12549,146.65,146.57,21.85]
[1723578906398,0.51121304,146.65,146.58,30.0]
[1723578906705,0.12549,146.64,146.58,30.0]
[1723578906884,0.12549,146.62,146.58,30.0]
[1723578907083,45.12549,146.62,146.58,30.0]
[1723578907287,45.12549,146.62,146.56,0.8368781]
[1723578908398,45.12549,146.62,146.56,20.8368781]
[1723578910008,0.12549,146.6,146.56,0.8368781]
[1723578910197,0.51121304,146.6,146.56,0.8368781]
[1723578910383,45.51121304,146.6,146.56,0.8368781]
[1723578911285,0.12549,146.58,146.56,0.8368781]
[1723578912413,0.51121304,146.58,146.56,0.8368781]
[1723578912613,0.12549,146.58,146.56,0.8368781]
[1723578912824,0.37647,146.57,146.56,0.8368781]
[1723578912990,0.50196,146.57,146.56,0.8368781]
[1723578914492,6.53976,146.57,146.56,0.8368781]
[1723578914695,51.53976,146.57,146.56,0.8368781]
[1723578916007,51.41427,146.57,146.56,0.8368781]
[1723578916211,22.7611,146.61,146.56,0.8368781]
[1723578916420,0.12549,146.6,146.56,0.8368781]
[1723578916623,45.12549,146.6,146.56,0.8368781]
[1723578916782,22.7611,146.61,146.56,0.8368781]
[1723578916992,22.7611,146.61,146.56,22.6868781]
[1723578917317,38.8922,146.7,146.58,21.85]
[1723578917318,16.1266,146.65,146.58,21.85]
[1723578917522,16.1266,146.65,146.56,0.8368781]
[1723578917523,16.1266,146.65,146.56,22.6868781]
[1723578917681,16.1266,146.65,146.57,20.0]
[1723578918318,16.1266,146.65,146.56,0.8368781]
[1723578918497,6.8194,146.64,146.56,0.8368781]
[1723578919001,0.12549,146.64,146.57,30.0]
[1723578919514,16.1266,146.65,146.57,30.0]
[1723578919720,16.1266,146.65,146.58,21.85]
[1723578920124,16.1266,146.65,146.59,20.0]
[1723578920612,7.08959276,146.71,146.59,20.0]
[1723578920784,21.5985,146.7,146.6,21.85]
[1723578920985,21.5985,146.7,146.64,21.85]
[1723578921216,21.5985,146.7,146.62,21.85]
[1723578921393,15.4606,146.7,146.64,21.85]
[1723578921602,21.6198,146.74,146.64,21.85]
[1723578921816,21.6198,146.74,146.65,20.0]
[1723578922207,22.00552304,146.74,146.65,50.0]
[1723578922390,21.6198,146.74,146.65,50.0]
[1723578922812,28.4346,146.74,146.65,50.0]
[1723578923239,21.6198,146.74,146.65,50.0]
[1723578923528,45.50196,146.73,146.65,50.0]
[1723578923690,45.88768304,146.73,146.65,50.0]
[1723578923890,45.50196,146.73,146.65,50.0]
[1723578925425,52.31726,146.73,146.65,50.0]
[1723578925625,45.50196,146.73,146.65,50.0]
[1723578926212,45.50196,146.73,146.65,30.0]
[1723578926415,0.12549,146.71,146.65,30.0]
[1723578926637,52.31816,146.71,146.65,30.0]
[1723578926813,45.50196,146.71,146.65,30.0]
[1723578927827,52.31816,146.71,146.65,30.0]
[1723578929100,21.85,146.7,146.65,30.0]
[1723578929304,0.12549,146.67,146.56,0.8368781]
[1723578929515,45.88768304,146.67,146.57,30.0]
[1723578929718,52.70568304,146.67,146.57,30.0]
[1723578930556,52.31996,146.67,146.57,30.0]
[1723578931346,45.50196,146.67,146.58,1.34072286]
[1723578932254,45.50196,146.67,146.57,30.0]
[1723578932550,45.50196,146.67,146.57,51.85]
[1723578932720,45.50196,146.67,146.58,20.0]
[1723578933455,45.50196,146.67,146.59,30.0]
[1723578935548,45.50196,146.67,146.6,20.0]
[1723578936558,45.50196,146.67,146.61,30.0]
[1723578937960,45.50196,146.67,146.6,20.0]
[1723578938142,45.50196,146.67,146.58,20.0]
[1723578938468,45.50196,146.67,146.6,30.0]
[1723578940057,52.31996,146.67,146.6,30.0]
[1723578940461,45.50196,146.67,146.6,30.0]
[1723578940964,45.50196,146.67,146.58,20.0]
[1723578941141,45.50196,146.67,146.56,20.8368781]
[1723578941333,45.50196,146.67,146.57,30.0]
[1723578941535,45.50196,146.67,146.58,20.0]
[1723578941943,21.85,146.66,146.58,20.0]
[1723578942135,0.50196,146.65,146.58,20.0]
[1723578942349,45.50196,146.65,146.58,20.0]
[1723578943264,45.50196,146.65,146.57,30.0]
[1723578943765,0.12549,146.63,146.57,30.0]
[1723578943944,45.50196,146.63,146.57,30.0]
[1723578944148,0.12549,146.61,146.57,30.0]
[1723578944444,45.50196,146.61,146.56,0.8368781]
[1723578945051,0.38572304,146.6,146.56,0.8368781]
[1723578945350,0.12549,146.59,146.56,0.8368781]
[1723578945945,0.12549,146.6,146.56,0.8368781]
[1723578946145,0.50196,146.6,146.56,0.8368781]
[1723578947350,0.88768304,146.6,146.56,0.8368781]
[1723578948148,0.50196,146.6,146.56,0.8368781]
[1723578949085,45.0,146.61,146.56,0.8368781]
[1723578950376,0.12549,146.6,146.56,0.8368781]
[1723578950549,45.0,146.61,146.56,0.8368781]
[1723578950976,6.77459,146.62,146.56,0.8368781]
[1723578951484,45.12549,146.61,146.56,0.8368781]
[1723578952175,6.6491,146.62,146.56,22.6868781]
[1723578952386,6.6491,146.62,146.57,20.0]
[1723578954691,0.12549,146.63,146.57,20.0]
[1723578954873,45.12549,146.63,146.57,20.0]
[1723578955489,45.12549,146.63,146.56,0.8368781]
[1723578955670,0.12549,146.61,146.56,0.8368781]
[1723578956465,0.51121304,146.61,146.56,0.8368781]
[1723578956666,0.12549,146.61,146.56,0.8368781]
[1723578957666,0.12549,146.61,146.56,2.20121727]
[1723578959484,0.12549,146.62,146.56,0.8368781]
[1723578959993,16.5316,146.64,146.56,22.6868781]
[1723578960197,15.263,146.68,146.58,21.85]
[1723578960370,15.263,146.68,146.6,21.85]
[1723578960689,15.263,146.68,146.58,21.85]
[1723578960905,15.263,146.68,146.59,20.0]
[1723578961065,0.38572304,146.67,146.57,26.468]
[1723578961268,6.8186,146.66,146.56,16.5307781]
[1723578961570,6.94359,146.67,146.57,20.0]
[1723578961767,0.12549,146.65,146.57,20.0]
[1723578964175,0.12549,146.65,146.56,0.8368781]
[1723578964878,6.94469,146.65,146.56,0.8368781]
[1723578965074,0.12549,146.63,146.56,0.8368781]
[1723578965304,45.37647,146.63,146.56,0.8368781]
[1723578965488,0.25098,146.63,146.56,0.8368781]
[1723578965694,0.25098,146.63,146.56,22.6868781]
[1723578966294,0.25098,146.63,146.56,0.8368781]
[1723578966680,0.12549,146.62,146.56,0.8368781]
[1723578966881,0.12549,146.61,146.56,0.8368781]
[1723578967125,45.25098,146.61,146.56,0.8368781]
[1723578967294,0.12549,146.6,146.56,0.8368781]
[1723578967497,0.12549,146.59,146.56,0.8368781]
[1723578967813,0.12549,146.6,146.56,0.8368781]
[1723578968522,0.12549,146.59,146.56,0.8368781]
[1723578970625,0.37647,146.59,146.56,0.8368781]
[1723578970841,0.12549,146.58,146.56,0.8368781]
[1723578971135,0.12549,146.57,146.56,0.8368781]
[1723578971941,0.12549,146.59,146.56,0.8368781]
[1723578972149,0.12549,146.58,146.56,0.8368781]
[1723578972315,0.50196,146.6,146.56,0.8368781]
[1723578974950,22.2516,146.62,146.56,0.8368781]
[1723578975258,15.8955,146.62,146.56,0.8368781]
[1723578975552,6.4462,146.65,146.61,21.85]
[1723578975756,6.4462,146.65,146.59,21.85]
[1723578975914,15.6167,146.66,146.59,21.85]
[1723578976114,15.6167,146.66,146.6,1.36398265]
[1723578976424,15.6167,146.66,146.61,1.36388963]
[1723578976732,15.6167,146.66,146.59,21.85]
[1723578977750,45.37647,146.65,146.57,21.85]
[1723578977926,45.50196,146.65,146.58,20.0]
[1723578983434,0.12549,146.63,146.57,21.85]
[1723578984328,0.12549,146.64,146.57,21.85]
[1723578984635,0.12549,146.64,146.59,21.85]
[1723578985023,15.6167,146.66,146.59,21.85]
[1723578986283,45.12549,146.65,146.59,21.85]
[1723578986974,45.12549,146.65,146.56,0.8368781]
[1723578986975,45.12549,146.65,146.57,21.85]
[1723578987152,0.12549,146.63,146.58,20.0]
[1723578987763,0.12549,146.63,146.56,20.8368781]
[1723578988681,0.12549,146.63,146.57,21.85]
[1723578988867,0.12549,146.64,146.58,21.36406418]
[1723578989278,0.12549,146.64,146.58,20.0]
[1723578992267,45.0,146.65,146.59,21.85]
[1723578993899,0.12549,146.64,146.58,20.0]
[1723578998515,0.50196,146.64,146.56,0.8368781]
[1723578998917,0.50196,146.64,146.56,20.8368781]
[1723578999876,0.50196,146.64,146.57,21.85]
[1723579004998,0.12549,146.64,146.57,21.85]
[1723579005192,45.0,146.65,146.59,21.85]
[1723579005510,45.0,146.65,146.6,1.12713692]
[1723579005700,45.0,146.65,146.61,1.22433221]
[1723579005894,15.6167,146.66,146.61,23.07433221]
[1723579006413,6.4462,146.68,146.63,21.85]
[1723579006619,15.3566,146.7,146.65,21.85]
[1723579006917,6.4498,146.72,146.67,21.85]
[1723579007212,6.4498,146.72,146.68,1.24546198]
[1723579007584,6.4498,146.72,146.67,21.85]
[1723579008288,6.4498,146.72,146.68,1.24750265]
[1723579008490,6.4498,146.72,146.67,21.85]
[1723579017632,0.12549,146.73,146.67,21.85]
[1723579017926,16.6462,146.74,146.71,21.85]
[1723579018224,6.4249,146.76,146.71,21.85]
[1723579019004,6.4249,146.76,146.69,21.85]
[1723579019325,45.25098,146.75,146.67,21.85]
[1723579019532,45.25098,146.75,146.68,20.0]
[1723579022618,0.25098,146.74,146.68,20.0]
[1723579022793,0.12549,146.73,146.68,20.0]
[1723579023002,0.12549,146.73,146.67,21.85]
[1723579023003,0.12549,146.73,146.65,28.4931]
[1723579023199,0.12549,146.73,146.66,20.0]
[1723579023429,0.12549,146.73,146.67,21.85]
[1723579023756,6.4249,146.76,146.7,21.85]
[1723579023953,6.4249,146.76,146.71,0.52970075]
[1723579024169,6.4249,146.76,146.71,1.36299321]
[1723579024364,6.4249,146.76,146.7,21.85]
[1723579024528,6.4249,146.76,146.68,51.85]
[1723579024731,6.4249,146.76,146.69,0.41272725]
[1723579025028,0.12549,146.75,146.68,51.85]
[1723579025228,45.12549,146.75,146.68,21.85]
[1723579025448,45.12549,146.75,146.7,21.85]
[1723579026036,6.4249,146.76,146.7,21.85]
[1723579026232,6.4249,146.76,146.71,20.0]
[1723579026644,0.12549,146.75,146.71,20.0]
[1723579026839,45.25098,146.75,146.68,21.85]
[1723579027036,45.12549,146.75,146.69,20.0]
[1723579030560,6.4249,146.76,146.69,20.0]
[1723579030762,6.4249,146.76,146.7,23.21313099]
[1723579030986,6.4249,146.76,146.7,21.85]
[1723579031281,6.4249,146.76,146.71,0.86579421]
[1723579031446,6.4249,146.76,146.71,1.36294134]
[1723579032369,6.4249,146.76,146.7,21.85]
[1723579035957,6.4249,146.76,146.71,8.75]
[1723579036883,16.444,146.78,146.73,8.75]
[1723579037198,16.444,146.78,146.75,8.75]
[1723579038500,16.444,146.78,146.73,8.75]
[1723579038870,45.0,146.77,146.71,8.75]
[1723579039086,45.0,146.77,146.72,20.0]
[1723579039295,16.444,146.78,146.73,8.75]
[1723579039812,16.444,146.78,146.66,15.6084]
[1723579040102,16.444,146.78,146.7,8.75]
[1723579040401,0.12549,146.77,146.71,20.0]
[1723579040603,45.50196,146.77,146.71,20.0]
[1723579041110,0.38572304,146.76,146.71,20.0]
[1723579041286,45.50196,146.77,146.71,20.0]
[1723579041982,45.50196,146.77,146.7,8.75]
[1723579042380,0.12549,146.75,146.67,30.0]
[1723579042595,0.12549,146.73,146.65,103.24648302]
[1723579042770,45.25098,146.73,146.65,103.24648302]
[1723579042971,0.25098,146.72,146.65,103.24648302]
[1723579043187,0.12549,146.71,146.65,103.24648302]
[1723579043792,0.12549,146.71,146.66,20.0]
[1723579044167,45.0,146.73,146.66,41.88]
[1723579044367,45.0,146.73,146.68,21.88]
[1723579044675,22.6084,146.74,146.69,20.0]
[1723579047681,16.1954,146.74,146.7,21.88]
[1723579047888,16.1954,146.74,146.71,1.36298403]
[1723579048199,6.4232,146.78,146.7,21.88]
[1723579048200,16.325,146.77,146.7,21.88]
[1723579048399,16.325,146.77,146.72,21.88]
[1723579048605,16.325,146.77,146.74,21.88]
[1723579048907,16.325,146.77,146.72,21.88]
[1723579050702,45.12549,146.76,146.7,21.88]
[1723579050909,45.12549,146.76,146.71,20.0]
[1723579051581,45.12549,146.76,146.68,37.3733]
[1723579051785,45.12549,146.76,146.69,50.0]
[1723579052178,45.12549,146.76,146.69,20.0]
[1723579056100,0.12549,146.74,146.69,20.0]
[1723579056594,0.12549,146.74,146.65,123.47741469]
[1723579056785,0.12549,146.74,146.65,116.37648302]
[1723579057379,45.12549,146.74,146.65,21.88]
[1723579057585,16.3622,146.71,146.63,21.88]
[1723579057877,45.12549,146.7,146.63,21.88]
[1723579059402,16.3622,146.71,146.65,21.88]
[1723579060108,0.12549,146.7,146.65,21.88]
[1723579060415,45.12549,146.7,146.65,21.88]
[1723579061002,16.3622,146.71,146.66,1.36347161]
[1723579061416,16.3622,146.71,146.65,21.88]
[1723579061716,0.12549,146.7,146.63,21.88]
[1723579061919,45.51121304,146.7,146.64,20.0]
[1723579062092,45.12549,146.7,146.63,21.88]
[1723579062297,16.3622,146.71,146.62,7.10306661]
[1723579062298,16.3622,146.71,146.65,21.88]
[1723579062516,16.3622,146.71,146.66,0.59403366]
[1723579062890,16.3622,146.71,146.65,21.88]
[1723579064093,10.23438728,146.7,146.65,21.88]
[1723579064692,10.23438728,146.69,146.65,21.88]
[1723579065411,16.3622,146.71,146.65,21.88]
[1723579066115,16.3622,146.71,146.62,7.10306661]
[1723579066116,0.12549,146.7,146.63,21.88]
[1723579066414,45.12549,146.7,146.63,21.88]
[1723579070319,45.12549,146.7,146.62,7.10306661]
[1723579070497,45.12549,146.7,146.63,20.0]
[1723579070926,51.94229,146.7,146.63,20.0]
[1723579071128,22.3666,146.67,146.6,94.52871238]
[1723579071332,45.37647,146.66,146.57,21.88]
[1723579071820,0.12549,146.65,146.57,21.88]
[1723579072795,0.12549,146.65,146.58,20.0]
[1723579074721,45.37647,146.66,146.59,23.24401235]
[1723579077017,45.25098,146.66,146.59,23.24401235]
[1723579077339,45.12549,146.66,146.59,21.88]
[1723579078210,22.3666,146.67,146.61,21.88]
[1723579078626,22.3666,146.67,146.64,21.88]
[1723579079240,22.3666,146.67,146.62,21.88]
[1723579079415,22.3666,146.67,146.63,1.36331597]
[1723579079621,22.3666,146.67,146.62,21.88]
[1723579084240,15.9621,146.67,146.63,1.36368788]
[1723579084921,21.6502,146.7,146.66,21.88]
[1723579085314,21.6502,146.7,146.62,21.88]
[1723579085514,21.6502,146.7,146.6,21.88]
[1723579085515,28.4672,146.7,146.6,21.88]
[1723579085833,28.4672,146.7,146.61,20.0]
[1723579086137,21.6502,146.7,146.61,20.0]
[1723579086319,45.12549,146.69,146.61,20.0]
[1723579086519,45.0,146.69,146.61,20.0]
[1723579086724,0.12549,146.68,146.61,20.0]
[1723579087262,0.50196,146.68,146.61,20.0]
[1723579087422,0.37647,146.68,146.61,20.0]
[1723579090142,45.0,146.69,146.61,20.0]
[1723579091017,45.0,146.69,146.62,21.88]
[1723579091218,21.6502,146.7,146.62,23.24324613]
[1723579091451,21.6502,146.7,146.64,21.88]
[1723579091621,21.6502,146.7,146.65,1.36317294]
[1723579092118,21.6502,146.7,146.66,8.75]
[1723579092318,21.6502,146.7,146.67,1.36298705]
[1723579092518,21.6502,146.7,146.64,8.75]
[1723579092718,21.6502,146.7,146.62,8.75]
[1723579092935,7.20282304,146.69,146.62,8.75]
[1723579093356,45.0,146.68,146.62,8.75]
[1723579093652,0.12549,146.67,146.6,8.75]
[1723579093854,0.50196,146.68,146.56,43.01771481]
[1723579094036,0.50196,146.68,146.58,21.9]
[1723579094238,0.50196,146.68,146.59,20.0]
[1723579094648,0.50196,146.68,146.6,23.26382622]
[1723579094824,0.50196,146.68,146.61,1.36383029]
[1723579095154,0.12549,146.68,146.6,21.9]
[1723579095656,0.50196,146.68,146.6,21.9]
[1723579097360,0.50196,146.68,146.61,1.36384643]
[1723579098674,0.50196,146.68,146.6,21.9]
[1723579102463,0.50196,146.68,146.59,20.0]
[1723579102665,0.12549,146.66,146.59,20.0]
[1723579102952,45.37647,146.66,146.57,20.0]
[1723579103562,45.37647,146.66,146.58,21.9]
[1723579103741,45.37647,146.66,146.59,20.0]
[1723579104060,45.37647,146.66,146.6,1.35592018]
[1723579104353,45.37647,146.66,146.59,20.0]
[1723579104354,45.12549,146.66,146.59,20.0]
[1723579107446,45.12549,146.66,146.6,21.9]
[1723579107447,45.0,146.66,146.6,21.9]
[1723579107754,15.9934,146.67,146.62,21.9]
[1723579108359,15.9934,146.67,146.64,21.9]
[1723579109048,6.1777,146.7,146.66,21.9]
[1723579109254,16.1182,146.71,146.67,23.26331942]
[1723579109554,16.1182,146.71,146.68,1.36329303]
[1723579110247,16.1182,146.71,146.65,21.9]
[1723579110952,0.12549,146.69,146.63,21.9]
[1723579111153,0.12549,146.69,146.64,50.0]
[1723579111736,0.12549,146.69,146.64,20.0]
[1723579114542,0.12549,146.67,146.61,21.9]
[1723579114739,0.12549,146.67,146.62,20.0]
[1723579114740,45.12549,146.67,146.62,20.0]
[1723579115859,6.6262,146.68,146.62,20.0]
[1723579118357,6.6262,146.68,146.63,1.36370145]
[1723579118538,6.6262,146.68,146.62,20.0]
[1723579119146,0.12549,146.67,146.61,21.9]
[1723579119344,45.12549,146.67,146.61,21.9]
[1723579119944,45.12549,146.67,146.61,8.76]
[1723579121034,0.12549,146.65,146.59,15.86519624]
[1723579121241,45.12549,146.65,146.59,8.76]
[1723579121462,45.25098,146.65,146.57,8.76]
[1723579121641,0.12549,146.64,146.58,30.0]
[1723579121840,0.12549,146.63,146.58,30.0]
[1723579122255,0.12549,146.63,146.57,8.76]
[1723579122764,0.12549,146.63,146.58,20.0]
[1723579123262,0.37647,146.63,146.56,0.8368781]
[1723579123471,0.12549,146.61,146.57,8.76]
[1723579123667,45.12549,146.61,146.57,8.76]
[1723579123871,45.12549,146.61,146.56,0.8368781]
[1723579124743,45.12549,146.61,146.56,20.8368781]
[1723579126962,45.12549,146.61,146.56,22.20128759]
[1723579128465,6.5246,146.62,146.56,22.20128759]
[1723579128772,6.5246,146.62,146.57,21.91]
[1723579128973,6.5246,146.62,146.58,1.36416605]
[1723579129466,21.6171,146.66,146.59,21.91]
[1723579129647,21.6171,146.66,146.6,1.36397994]
[1723579130138,21.6171,146.66,146.59,21.91]
[1723579130344,21.6171,146.66,146.57,21.91]
[1723579130542,0.12549,146.65,146.57,21.91]
[1723579130762,45.50196,146.65,146.57,21.91]
[1723579131173,45.50196,146.65,146.58,1.36410068]
[1723579131554,21.6171,146.66,146.59,21.91]
[1723579131866,15.5653,146.66,146.61,21.91]
[1723579132371,15.5653,146.66,146.62,1.36315784]
[1723579134141,15.5653,146.66,146.61,21.91]
[1723579134764,15.5653,146.66,146.63,21.91]
[1723579134980,15.5653,146.66,146.61,21.91]
[1723579136973,15.5653,146.66,146.62,0.48322126]
[1723579137276,15.5653,146.66,146.61,21.91]
[1723579138362,15.5653,146.66,146.62,1.2413384]
[1723579139357,0.12549,146.69,146.62,1.2413384]
[1723579139555,45.50196,146.69,146.62,1.2413384]
[1723579140281,45.50196,146.69,146.61,21.91]
[1723579140461,45.50196,146.69,146.62,0.83425855]
[1723579140653,52.31906,146.69,146.6,21.91]
[1723579140858,45.50196,146.69,146.6,21.91]
[1723579141177,45.50196,146.69,146.62,21.91]
[1723579143459,21.8724,146.7,146.64,21.91]
[1723579143666,21.8724,146.7,146.65,1.36352424]
[1723579143861,21.8724,146.7,146.65,21.91]
[1723579144063,21.8724,146.7,146.66,10.11343127]
[1723579144275,21.8724,146.7,146.64,8.75]
[1723579144677,0.37647,146.69,146.62,8.75]
[1723579144975,45.0,146.69,146.64,8.75]
[1723579145370,45.0,146.69,146.62,8.75]
[1723579146284,0.12549,146.68,146.62,8.75]
[1723579146477,0.50196,146.68,146.62,8.75]
[1723579146967,0.12549,146.68,146.64,8.75]
[1723579147351,45.0,146.69,146.64,8.75]
[1723579147578,21.8724,146.7,146.66,8.75]
[1723579147794,15.7766,146.7,146.66,8.75]
[1723579147997,21.5359,146.74,146.68,8.75]
[1723579148154,21.5359,146.74,146.7,8.75]
[1723579149085,21.5359,146.74,146.68,8.75]
[1723579149384,45.12549,146.73,146.68,8.75]
[1723579149761,21.5359,146.74,146.7,8.75]
[1723579149762,15.1622,146.74,146.7,8.75]